[Event "French-ch Youth U12 2022"]
[Site "Agen"]
[Date "2022.04.18"]
[Round "3.4"]
[White "Muller-Moingt, Bastien"]
[Black "Favauge, Elias"]
[Result "1/2-1/2"]
[ECO "B40"]
[WhiteElo "1696"]
[BlackElo "1400"]
[Annotator "NA RC"]
[PlyCount "105"]
[EventDate "2022.04.17"]
[EventType "swiss"]
[EventCountry "FRA"]
[SourceTitle "playchess.com"]
[Source "ChessBase"]
[SourceQuality "1"]
[TimeControl "5400+30"]

1. e4 {[%emt 0:00:03]} c5 {[%emt 0:00:14]} 2. Nf3 {[%emt 0:00:13]} e6 {[%emt 0:00:20]} 3. c3 {[%emt 0:00:37]} d5 {[%emt 0:00:44]} 4. exd5 {[%emt 0:00:25]} Qxd5 {[%emt 0:00:33]} 5. d4 {[%emt 0:01:10]} Nc6 {[%emt 0:01:55]} 6. Be2 {[%emt 0:01:25]} cxd4 {[%emt 0:01:32]} 7. cxd4 {[%emt 0:00:15]} Nf6 {[%emt 0:00:14]} 8. O-O {[%emt 0:01:33]} Bb4 {[%emt 0:01:39]} 9. Nc3 {[%emt 0:06:59]} Bxc3 {[%emt 0:01:38]} 10. bxc3 {[%emt 0:00:13]} O-O {[%emt 0:03:23]} 11. Bb2 {[%emt 0:01:31]} b6 {[%emt 0:03:59]} 12. Qc2 {[%emt 0:06:04]} Bb7 {[%emt 0:03:29]} 13. Qa4 {[%emt 0:08:46]} Na5 {[%emt 0:07:58]} 14. Qb5 {[%emt 0:03:53]} Qxb5 {[%emt 0:03:32]} 15. Bxb5 {[%emt 0:00:01]} Bd5 {[%emt 0:01:18]} 16. Ne5 {[%emt 0:02:05]} Rfc8 {[%emt 0:03:12]} 17. Rfe1 {[%emt 0:03:16]} Bc4 {[%emt 0:03:23]} 18. Bxc4 {[%emt 0:14:53]} Nxc4 {[%emt 0:02:33]} 19. Nxc4 {[%emt 0:00:01]} Rxc4 {[%emt 0:00:19]} 20. Rec1 {[%emt 0:02:29]} Nd5 {[%emt 0:02:03]} 21. Ba3 {[%emt 0:08:32]} Rac8 {[%emt 0:03:09]} 22. Kf1 {[%emt 0:02:43]} Nxc3 {[%emt 0:02:14]} 23. Rc2 {[%emt 0:02:35]} Nb5 {[%emt 0:02:27]} 24. Rxc4 {[%emt 0:00:28]} Rxc4 {[%emt 0:00:09]} 25. Bb2 {[%emt 0:00:39]} Rb4 {[%emt 0:01:26]} 26. Rc1 {[%emt 0:00:29]} h6 {[%emt 0:00:43]} 27. Ba1 {[%emt 0:02:24]} Nxd4 {[%emt 0:01:49]} 28. Ke1 {[%emt 0:02:39]} Nc2+ {[%emt 0:02:26]} 29. Rxc2 {[%emt 0:00:06]} Rb1+ {[%emt 0:00:07]} 30. Ke2 {[%emt 0:00:02]} Rxa1 {[%emt 0:00:11]} 31. Kf3 {[%emt 0:00:20]} b5 {[%emt 0:00:35]} 32. Rb2 {[%emt 0:00:43]} a6 {[%emt 0:00:28]} 33. Ke4 {[%emt 0:01:05]} a5 {[%emt 0:02:18]} 34. Kd4 {[%emt 0:00:51]} Rh1 {[%emt 0:00:48]} 35. h3 {[%emt 0:00:45]} Rc1 {[%emt 0:01:39]} 36. g3 {[%emt 0:02:11]} b4 {[%emt 0:00:18]} 37. Ke5 {[%emt 0:00:34]} Kf8 {[%emt 0:01:09]} 38. Kd6 {[%emt 0:00:17]} Ke8 {[%emt 0:01:59]} 39. Rd2 {[%emt 0:02:25]} Kf8 {[%emt 0:06:05]} 40. Rb2 {[%emt 0:00:56]} g5 {[%emt 0:00:17]} 41. Ke5 {[%emt 0:01:20]} Ke7 {[%emt 0:00:55]} 42. Rd2 {[%emt 0:02:08]} f5 {[%emt 0:02:57]} 43. Re2 {[%emt 0:01:38]} Rh1 {[%emt 0:01:18]} 44. Rc2 {[%emt 0:00:18]} Re1+ {[%emt 0:01:06]} 45. Kd4 {[%emt 0:00:04]} e5+ {[%emt 0:00:03]} 46. Kc5 {[%emt 0:00:23]} Rd1 {[%emt 0:01:19]} 47. Kb6 {[%emt 0:00:31]} Rd5 {[%emt 0:00:33]} 48. Rc7+ {[%emt 0:01:55]} Ke6 {[%emt 0:02:17]} 49. Rh7 {[%emt 0:01:46]} a4 {[%emt 0:01:02]} 50. Rxh6+ {[%emt 0:00:05]} Kd7 {[%emt 0:00:38]} 51. Rh7+ {[%emt 0:00:11]} Kd6 {[%emt 0:01:38]} 52. Rh6+ {[%emt 0:01:01]} Kd7 {[%emt 0:00:10]} 53. Rh7+ {[%emt 0:00:04]} 1/2-1/2

[Event "French-ch Youth U12 2022"]
[Site "Agen"]
[Date "2022.04.18"]
[Round "3.5"]
[White "Neel, Laura"]
[Black "Dubin, Lisa"]
[Result "1-0"]
[ECO "B07"]
[WhiteElo "1725"]
[BlackElo "1156"]
[Annotator "NA RC"]
[PlyCount "115"]
[EventDate "2022.04.17"]
[EventType "swiss"]
[EventCountry "FRA"]
[SourceTitle "playchess.com"]
[Source "ChessBase"]
[SourceQuality "1"]
[TimeControl "5400+30"]

1. e4 d6 2. d4 Nf6 3. Nc3 Nbd7 4. Nf3 e5 5. dxe5 dxe5 6. Bc4 Bc5 7. O-O c6 8. Bg5 b5 9. Bb3 O-O 10. Qe2 Qc7 11. Rad1 a5 12. a4 b4 13. Nb1 Ba6 14. Bc4 Bxc4 15. Qxc4 Ba7 16. b3 h6 17. Bh4 Nb6 18. Qe2 Qe7 19. Nbd2 Rac8 20. Nc4 Nxc4 21. Qxc4 c5 22. Qb5 Qc7 23. Qe2 c4 24. Nd2 cxb3 25. cxb3 Qc6 26. Kh1 Qc7 27. f3 Qc2 28. Qa6 Rfd8 29. Qxa7 Rxd2 30. Rxd2 Qxd2 31. Qxa5 Rc1 32. Qb5 Nh5 33. Bf2 Nf4 34. Rxc1 Qxc1+ 35. Bg1 Qb2 36. Qf1 Qxb3 37. a5 Qa2 38. a6 b3 39. a7 b2 40. Qb5 Kh7 41. a8=Q b1=Q 42. Qxa2 Qxb5 43. h3 Qf1 44. Kh2 Ne2 45. Be3 f6 46. Qd2 h5 47. h4 g5 48. Qd7+ Kg6 49. Qe8+ Kh7 50. Qe7+ Kg6 51. hxg5 fxg5 52. Qxg5+ Kf7 53. Qxh5+ Ke6 54. Qg6+ Kd7 55. Qf5+ Kd6 56. Qf6+ Kd7 57. Qg7+ Ke6 58. Bc5 1-0

[Event "French-ch Youth U12 2022"]
[Site "Agen"]
[Date "2022.04.18"]
[Round "3.8"]
[White "Lopneva, Christina"]
[Black "Alfano, Emilie"]
[Result "0-1"]
[ECO "D60"]
[WhiteElo "1118"]
[BlackElo "1635"]
[Annotator "NA RC"]
[PlyCount "92"]
[EventDate "2022.04.17"]
[EventType "swiss"]
[EventCountry "FRA"]
[SourceTitle "playchess.com"]
[Source "ChessBase"]
[SourceQuality "1"]
[TimeControl "5400+30"]

1. d4 {[%emt 0:00:02]} d5 {[%emt 0:00:11]} 2. c4 {[%emt 0:00:09]} e6 {[%emt 0:00:08]} 3. Nc3 {[%emt 0:00:10]} Nf6 {[%emt 0:00:26]} 4. Bg5 {[%emt 0:00:47]} Be7 {[%emt 0:00:34]} 5. e3 {[%emt 0:00:24]} Nbd7 {[%emt 0:00:30]} 6. Nf3 {[%emt 0:01:12]} O-O {[%emt 0:01:29]} 7. Be2 {[%emt 0:01:00]} b6 {[%emt 0:01:11]} 8. O-O {[%emt 0:01:07]} Bb7 {[%emt 0:00:17]} 9. Bf4 {[%emt 0:03:08]} c5 {[%emt 0:02:42]} 10. cxd5 {[%emt 0:01:46]} Nxd5 {[%emt 0:00:35]} 11. Nxd5 {[%emt 0:01:55]} Bxd5 {[%emt 0:00:30]} 12. Bg3 {[%emt 0:03:10]} Nf6 {[%emt 0:05:10]} 13. Qd3 {[%emt 0:03:08]} Ne4 {[%emt 0:11:08]} 14. Bf4 {[%emt 0:03:45]} Rc8 {[%emt 0:08:13]} 15. Qa6 {[%emt 0:11:18]} cxd4 {[%emt 0:01:51]} 16. exd4 {[%emt 0:05:17]} Bd6 {[%emt 0:06:59]} 17. Be3 {[%emt 0:03:49]} Bc7 {[%emt 0:05:40]} 18. Rac1 {[%emt 0:00:57]} Qe7 {[%emt 0:01:09]} 19. Kh1 {[%emt 0:01:16]} Ra8 {[%emt 0:05:17]} 20. Ne5 {[%emt 0:01:40]} f6 {[%emt 0:02:52]} 21. Nc6 {[%emt 0:01:36]} Qd6 {[%emt 0:00:21]} 22. f4 {[%emt 0:01:43]} Bxc6 {[%emt 0:00:27]} 23. Qc4 {[%emt 0:00:13]} Bd5 {[%emt 0:11:27]} 24. Qxc7 {[%emt 0:00:51]} Bxa2 {[%emt 0:01:05]} 25. Bf3 {[%emt 0:00:31]} Qxc7 {[%emt 0:00:42]} 26. Rxc7 {[%emt 0:00:10]} Bd5 {[%emt 0:00:09]} 27. Ra1 {[%emt 0:02:01]} a5 {[%emt 0:00:45]} 28. Bxe4 {[%emt 0:00:30]} Bxe4 {[%emt 0:00:09]} 29. d5 {[%emt 0:00:10]} Bxd5 {[%emt 0:01:54]} 30. Bxb6 {[%emt 0:00:14]} Rfb8 {[%emt 0:00:45]} 31. Rxa5 {[%emt 0:02:23]} Rxa5 {[%emt 0:00:19]} 32. Bxa5 {[%emt 0:00:10]} Rxb2 {[%emt 0:00:09]} 33. h4 {[%emt 0:06:26]} Rxg2 {[%emt 0:00:13]} 34. h5 {[%emt 0:00:37]} Ra2+ {[%emt 0:00:16]} 35. Kg1 {[%emt 0:01:05]} Rxa5 {[%emt 0:00:06]} 36. Rc8+ {[%emt 0:00:29]} Kf7 {[%emt 0:00:04]} 37. Rc7+ {[%emt 0:00:16]} Ke8 {[%emt 0:00:50]} 38. Rxg7 {[%emt 0:00:22]} Be4 {[%emt 0:00:03]} 39. h6 {[%emt 0:00:54]} Rh5 {[%emt 0:00:30]} 40. Rg8+ {[%emt 0:02:31]} Ke7 {[%emt 0:00:06]} 41. Rg7+ {[%emt 0:01:13]} Kd6 {[%emt 0:00:12]} 42. Ra7 {[%emt 0:01:27]} Rxh6 {[%emt 0:00:07]} 43. Ra6+ {[%emt 0:00:17]} Kd5 {[%emt 0:00:04]} 44. Ra5+ {[%emt 0:00:17]} Kd4 {[%emt 0:00:02]} 45. Ra6 {[%emt 0:00:44]} Ke3 {[%emt 0:00:09]} 46. Rxe6 {[%emt 0:00:26]} Rh1# {[%emt 0:00:06]} 0-1

[Event "French-ch Youth U12 2022"]
[Site "Agen"]
[Date "2022.04.19"]
[Round "4.1"]
[White "Spinosi, Aurelien"]
[Black "Martin, Nils"]
[Result "1-0"]
[ECO "C77"]
[WhiteElo "1532"]
[BlackElo "1671"]
[Annotator "NA RC"]
[PlyCount "81"]
[EventDate "2022.04.17"]
[EventType "swiss"]
[EventCountry "FRA"]
[SourceTitle "playchess.com"]
[Source "ChessBase"]
[SourceQuality "1"]
[TimeControl "5400+30"]

1. e4 {[%emt 0:00:08]} e5 {[%emt 0:00:06]} 2. Nf3 {[%emt 0:00:38]} Nc6 {[%emt 0:00:08]} 3. Bb5 {[%emt 0:00:36]} a6 {[%emt 0:00:09]} 4. Ba4 {[%emt 0:00:09]} Nf6 {[%emt 0:00:09]} 5. d4 {[%emt 0:01:07]} b5 {[%emt 0:03:51]} 6. Bb3 {[%emt 0:05:21]} Nxd4 {[%emt 0:03:34]} 7. Nxd4 {[%emt 0:23:29]} exd4 {[%emt 0:03:37]} 8. e5 {[%emt 0:01:01]} Qe7 {[%emt 0:02:47]} 9. O-O {[%emt 0:00:37]} Ne4 {[%emt 0:01:00]} 10. Bd5 {[%emt 0:03:13]} Rb8 {[%emt 0:02:19]} 11. Bxe4 {[%emt 0:00:27]} c5 {[%emt 0:00:22]} 12. Re1 {[%emt 0:01:14]} g6 {[%emt 0:00:53]} 13. Bf4 {[%emt 0:01:48]} Rb6 {[%emt 0:01:49]} 14. Qd2 {[%emt 0:04:25]} Bg7 {[%emt 0:01:32]} 15. c3 {[%emt 0:02:45]} O-O {[%emt 0:02:09]} 16. cxd4 {[%emt 0:02:41]} c4 {[%emt 0:01:26]} 17. Nc3 {[%emt 0:00:39]} Bb7 {[%emt 0:00:47]} 18. Bxb7 {[%emt 0:04:41]} Rxb7 {[%emt 0:00:03]} 19. Qe3 {[%emt 0:00:16]} Qb4 {[%emt 0:02:39]} 20. Rab1 {[%emt 0:01:16]} Qa5 {[%emt 0:02:20]} 21. Bh6 {[%emt 0:07:54]} b4 {[%emt 0:01:09]} 22. Bxg7 {[%emt 0:01:56]} Kxg7 {[%emt 0:00:32]} 23. Qf3 {[%emt 0:03:47]} Rb6 {[%emt 0:02:06]} 24. Nd5 {[%emt 0:02:21]} Rc6 {[%emt 0:01:08]} 25. Ne7 {[%emt 0:04:02]} Re6 {[%emt 0:00:48]} 26. d5 {[%emt 0:00:16]} Rb6 {[%emt 0:00:58]} 27. d6 {[%emt 0:00:15]} f6 {[%emt 0:00:48]} 28. Qd5 {[%emt 0:07:14]} Qxa2 {[%emt 0:01:25]} 29. exf6+ {[%emt 0:00:21]} Rxf6 {[%emt 0:00:29]} 30. Qg8+ {[%emt 0:01:09]} Kh6 {[%emt 0:00:22]} 31. Nd5 {[%emt 0:00:53]} Rbxd6 {[%emt 0:00:02]} 32. Nxf6 {[%emt 0:00:12]} Rxf6 {[%emt 0:00:13]} 33. Qd8 {[%emt 0:00:53]} Rf7 {[%emt 0:00:24]} 34. Qh4+ {[%emt 0:00:38]} Kg7 {[%emt 0:00:01]} 35. Qd4+ {[%emt 0:00:36]} Kh6 {[%emt 0:00:41]} 36. Ra1 {[%emt 0:00:41]} Qb3 {[%emt 0:00:55]} 37. Re3 {[%emt 0:00:14]} Qc2 {[%emt 0:00:39]} 38. Rh3+ {[%emt 0:00:28]} Kg5 {[%emt 0:00:03]} 39. Qh4+ {[%emt 0:00:50]} Kf5 {[%emt 0:00:02]} 40. Rf3+ {[%emt 0:00:12]} Ke6 {[%emt 0:00:23]} 41. Re1+ {[%emt 0:00:12]} 1-0

[Event "French-ch Youth U12 2022"]
[Site "Agen"]
[Date "2022.04.19"]
[Round "4.2"]
[White "Breuil, Virgile"]
[Black "Motoyama, Wesley Winsen"]
[Result "0-1"]
[ECO "B22"]
[WhiteElo "1829"]
[BlackElo "1590"]
[Annotator "NA RC"]
[PlyCount "86"]
[EventDate "2022.04.17"]
[EventType "swiss"]
[EventCountry "FRA"]
[SourceTitle "playchess.com"]
[Source "ChessBase"]
[SourceQuality "1"]
[TimeControl "5400+30"]

1. e4 {[%emt 0:00:09]} c5 {[%emt 0:00:24]} 2. c3 {[%emt 0:00:24]} d5 {[%emt 0:00:36]} 3. exd5 {[%emt 0:00:57]} Qxd5 {[%emt 0:00:44]} 4. Nf3 {[%emt 0:00:49]} Nf6 {[%emt 0:01:20]} 5. d4 {[%emt 0:01:15]} Bg4 {[%emt 0:00:38]} 6. Be2 {[%emt 0:00:30]} e6 {[%emt 0:01:05]} 7. O-O {[%emt 0:01:39]} Nc6 {[%emt 0:01:31]} 8. Be3 {[%emt 0:01:15]} cxd4 {[%emt 0:00:46]} 9. cxd4 {[%emt 0:00:23]} Be7 {[%emt 0:00:59]} 10. Nc3 {[%emt 0:00:39]} Qd6 {[%emt 0:00:33]} 11. a3 {[%emt 0:01:24]} O-O {[%emt 0:00:56]} 12. Qb3 {[%emt 0:01:21]} Rfd8 {[%emt 0:06:53]} 13. Rfd1 {[%emt 0:06:37]} Nd5 {[%emt 0:05:58]} 14. Qxb7 {[%emt 0:10:42]} Rab8 {[%emt 0:04:15]} 15. Qa6 {[%emt 0:00:04]} Bxf3 {[%emt 0:05:20]} 16. Bxf3 {[%emt 0:00:07]} Nxd4 {[%emt 0:03:45]} 17. Qxd6 {[%emt 0:04:52]} Nxf3+ {[%emt 0:00:13]} 18. gxf3 {[%emt 0:00:03]} Bxd6 {[%emt 0:03:31]} 19. Nxd5 {[%emt 0:01:05]} exd5 {[%emt 0:00:13]} 20. Rd2 {[%emt 0:00:36]} Rb7 {[%emt 0:07:08]} 21. Rad1 {[%emt 0:00:46]} Rbd7 {[%emt 0:01:25]} 22. Bd4 {[%emt 0:01:07]} f6 {[%emt 0:02:54]} 23. b4 $11 {[%emt 0:00:54]} Kf7 {[%emt 0:03:09]} 24. Kg2 {[%emt 0:01:58]} Ke6 {[%emt 0:02:05]} 25. Rd3 {[%emt 0:00:49]} Kf5 {[%emt 0:08:59]} 26. b5 {[%emt 0:01:54]} Be5 {[%emt 0:04:05]} 27. Bc5 {[%emt 0:07:14]} d4 {[%emt 0:03:30]} 28. a4 {[%emt 0:00:25]} g5 {[%emt 0:03:25]} 29. a5 {[%emt 0:12:58]} Rc8 {[%emt 0:08:10]} 30. Ba3 {[%emt 0:05:07]} Rb7 {[%emt 0:00:48]} 31. Rb1 {[%emt 0:08:12]} Rc3 {[%emt 0:10:44]} 32. Rxc3 {[%emt 0:00:08]} dxc3 {[%emt 0:00:05]} 33. a6 {[%emt 0:08:11]} c2 {[%emt 0:01:29]} 34. Rc1 {[%emt 0:04:05]} Rxb5 {[%emt 0:03:34]} 35. Rxc2 {[%emt 0:00:07]} Ra5 {[%emt 0:00:07]} 36. Bb4 {[%emt 0:01:12]} Rxa6 {[%emt 0:00:12]} 37. Rc5 {[%emt 0:00:26]} Ra4 {[%emt 0:01:01]} 38. Ba5 {[%emt 0:00:37]} Ke6 {[%emt 0:00:56]} 39. Bd8 {[%emt 0:02:40]} Ra2 {[%emt 0:01:12]} 40. Rc4 {[%emt 0:02:27]} Kd7 {[%emt 0:00:22]} 41. f4 {[%emt 0:00:33]} gxf4 {[%emt 0:00:38]} 42. Bxf6 {[%emt 0:00:09]} Bxf6 {[%emt 0:00:07]} 43. Rxf4 {[%emt 0:00:08]} Be7 {[%emt 0:00:11]} 0-1

[Event "French-ch Youth U12 2022"]
[Site "Agen"]
[Date "2022.04.19"]
[Round "4.3"]
[White "Rodriguez, Augustin"]
[Black "Bonelli Maestracci, Pierre Joseph"]
[Result "1/2-1/2"]
[ECO "B27"]
[WhiteElo "1662"]
[BlackElo "1629"]
[Annotator "NA RC"]
[PlyCount "206"]
[EventDate "2022.04.17"]
[EventType "swiss"]
[EventCountry "FRA"]
[SourceTitle "playchess.com"]
[Source "ChessBase"]
[SourceQuality "1"]
[TimeControl "5400+30"]

1. e4 {[%emt 0:00:10]} c5 {[%emt 0:00:06]} 2. Nf3 {[%emt 0:00:06]} g6 {[%emt 0:00:13]} 3. d4 {[%emt 0:00:32]} cxd4 {[%emt 0:00:10]} 4. Qxd4 {[%emt 0:00:19]} Nf6 {[%emt 0:00:14]} 5. e5 {[%emt 0:00:13]} Nc6 {[%emt 0:00:07]} 6. Qa4 {[%emt 0:00:20]} Nd5 {[%emt 0:00:30]} 7. Qe4 {[%emt 0:00:09]} Nb6 {[%emt 0:00:26]} 8. Nc3 {[%emt 0:01:01]} Bg7 {[%emt 0:00:39]} 9. Bf4 {[%emt 0:00:40]} d5 {[%emt 0:01:08]} 10. exd6 {[%emt 0:28:48]} Bf5 {[%emt 0:01:24]} 11. Qe2 {[%emt 0:03:09]} O-O {[%emt 0:00:47]} 12. Qd2 {[%emt 0:15:37]} exd6 {[%emt 0:04:02]} 13. Bd3 {[%emt 0:05:04]} Re8+ {[%emt 0:01:58]} 14. Be3 {[%emt 0:00:26]} Bxd3 {[%emt 0:00:57]} 15. Qxd3 {[%emt 0:21:34]} d5 {[%emt 0:02:33]} 16. Ne2 {[%emt 0:01:31]} Nc4 {[%emt 0:00:36]} 17. c3 {[%emt 0:05:38]} Nxb2 {[%emt 0:01:25]} 18. Qb5 {[%emt 0:00:37]} Nc4 {[%emt 0:01:01]} 19. O-O {[%emt 0:04:10]} Nxe3 {[%emt 0:00:51]} 20. fxe3 {[%emt 0:00:02]} Qe7 {[%emt 0:00:25]} 21. Rae1 {[%emt 0:04:11]} Qxe3+ {[%emt 0:01:31]} 22. Kh1 {[%emt 0:00:19]} Qb6 {[%emt 0:00:59]} 23. Qxd5 {[%emt 0:00:33]} Rad8 {[%emt 0:00:21]} 24. Qc4 {[%emt 0:00:49]} Na5 {[%emt 0:02:32]} 25. Qf4 {[%emt 0:00:42]} f5 {[%emt 0:04:52]} 26. Ned4 {[%emt 0:01:03]} Rc8 {[%emt 0:07:45]} 27. h4 {[%emt 0:03:14]} Nc6 {[%emt 0:10:48]} 28. h5 Nxd4 {[%emt 0:04:15]} 29. cxd4 {[%emt 0:01:38]} Rxe1 {[%emt 0:02:30]} 30. Rxe1 {[%emt 0:00:02]} Rd8 {[%emt 0:00:38]} 31. hxg6 {[%emt 0:00:21]} hxg6 {[%emt 0:01:17]} 32. Rd1 {[%emt 0:00:45]} Qd6 {[%emt 0:01:07]} 33. Qe3 {[%emt 0:00:01]} Qd5 {[%emt 0:07:55]} 34. Qd2 {[%emt 0:00:17]} Re8 {[%emt 0:02:26]} 35. Re1 {[%emt 0:00:49]} Rxe1+ {[%emt 0:05:37]} 36. Qxe1 {[%emt 0:00:08]} Qe4 {[%emt 0:00:20]} 37. Qa5 {[%emt 0:00:40]} Bf6 {[%emt 0:02:30]} 38. Qxa7 {[%emt 0:00:23]} g5 {[%emt 0:01:21]} 39. Qb8+ {[%emt 0:00:13]} Kg7 {[%emt 0:00:37]} 40. Qd6 {[%emt 0:00:31]} g4 {[%emt 0:01:03]} 41. Qd7+ {[%emt 0:02:59]} Kg6 {[%emt 0:00:33]} 42. Ne5+ {[%emt 0:00:33]} Bxe5 {[%emt 0:00:14]} 43. dxe5 {[%emt 0:00:47]} Qe1+ {[%emt 0:00:11]} 44. Kh2 {[%emt 0:00:08]} Qxe5+ {[%emt 0:00:04]} 45. Kg1 {[%emt 0:00:38]} g3 {[%emt 0:00:05]} 46. Kf1 {[%emt 0:00:51]} Qa1+ {[%emt 0:00:09]} 47. Ke2 {[%emt 0:00:08]} Qxa2+ {[%emt 0:00:01]} 48. Ke3 {[%emt 0:00:35]} Qf2+ {[%emt 0:01:09]} 49. Kd3 {[%emt 0:00:02]} Qf1+ {[%emt 0:00:24]} 50. Kc3 {[%emt 0:00:33]} Qxg2 {[%emt 0:00:13]} 51. Qe8+ {[%emt 0:01:26]} Kg5 {[%emt 0:00:12]} 52. Qg8+ {[%emt 0:00:23]} Kf4 {[%emt 0:00:09]} 53. Qb8+ {[%emt 0:00:04]} Kg4 {[%emt 0:00:15]} 54. Qg8+ {[%emt 0:00:43]} Kf3 {[%emt 0:00:22]} 55. Qd5+ {[%emt 0:00:12]} Kf2 {[%emt 0:00:04]} 56. Qd4+ {[%emt 0:00:57]} Ke2 {[%emt 0:00:52]} 57. Qd2+ {[%emt 0:00:39]} Kf1 {[%emt 0:00:12]} 58. Qd1+ {[%emt 0:00:03]} Kf2 {[%emt 0:00:23]} 59. Qd4+ {[%emt 0:00:28]} Ke1 {[%emt 0:01:14]} 60. Qe3+ {[%emt 0:00:32]} Kd1 {[%emt 0:00:21]} 61. Qd4+ {[%emt 0:00:56]} Kc1 {[%emt 0:00:35]} 62. Qe3+ {[%emt 0:00:29]} Kd1 {[%emt 0:00:30]} 63. Qd3+ {[%emt 0:00:37]} Ke1 {[%emt 0:00:13]} 64. Qb1+ {[%emt 0:00:24]} Kf2 {[%emt 0:00:40]} 65. Qb6+ {[%emt 0:00:17]} Ke1 {[%emt 0:01:06]} 66. Qb1+ {[%emt 0:00:20]} Ke2 {[%emt 0:00:07]} 67. Qb5+ {[%emt 0:00:22]} Kf3 {[%emt 0:01:38]} 68. Qxb7+ {[%emt 0:00:21]} Kf2 {[%emt 0:00:17]} 69. Qb6+ {[%emt 0:00:11]} Kf1 {[%emt 0:01:06]} 70. Qb1+ {[%emt 0:00:10]} Kf2 {[%emt 0:00:11]} 71. Qb6+ {[%emt 0:00:15]} Ke1 {[%emt 0:00:08]} 72. Qb1+ {[%emt 0:00:35]} Ke2 {[%emt 0:00:17]} 73. Qb5+ {[%emt 0:00:41]} Ke3 {[%emt 0:00:17]} 74. Qb6+ {[%emt 0:00:13]} Kf4 {[%emt 0:00:06]} 75. Qb8+ {[%emt 0:00:19]} Kg5 {[%emt 0:00:59]} 76. Qg8+ {[%emt 0:01:36]} Kf6 {[%emt 0:00:10]} 77. Qd8+ {[%emt 0:00:17]} Ke6 {[%emt 0:00:16]} 78. Qc8+ {[%emt 0:00:32]} Kd6 {[%emt 0:01:27]} 79. Qb8+ {[%emt 0:01:04]} Kc5 {[%emt 0:00:23]} 80. Qa7+ {[%emt 0:00:49]} Kb5 {[%emt 0:00:34]} 81. Qb8+ {[%emt 0:00:03]} Ka6 {[%emt 0:00:20]} 82. Qd6+ {[%emt 0:00:16]} Ka7 {[%emt 0:00:06]} 83. Qc5+ {[%emt 0:00:16]} Kb8 {[%emt 0:00:13]} 84. Qe5+ {[%emt 0:00:14]} Kb7 {[%emt 0:00:31]} 85. Qb5+ {[%emt 0:00:10]} Kc7 {[%emt 0:00:09]} 86. Qa5+ {[%emt 0:00:41]} Kd6 {[%emt 0:00:13]} 87. Qb4+ {[%emt 0:00:31]} Ke6 {[%emt 0:00:14]} 88. Qb6+ {[%emt 0:00:24]} Ke7 {[%emt 0:00:57]} 89. Qc5+ {[%emt 0:00:50]} Ke6 {[%emt 0:00:22]} 90. Qc8+ {[%emt 0:00:37]} Kf6 {[%emt 0:00:14]} 91. Qd8+ {[%emt 0:00:27]} Kg7 {[%emt 0:00:25]} 92. Qe7+ {[%emt 0:00:45]} Kg6 {[%emt 0:00:15]} 93. Qe6+ {[%emt 0:01:14]} Kg5 {[%emt 0:00:22]} 94. Qg8+ {[%emt 0:00:15]} Kf4 {[%emt 0:00:20]} 95. Qb8+ {[%emt 0:00:17]} Ke3 {[%emt 0:00:50]} 96. Qb6+ {[%emt 0:00:21]} Kf4 {[%emt 0:00:09]} 97. Qb8+ {[%emt 0:00:11]} Kg5 {[%emt 0:00:11]} 98. Qg8+ {[%emt 0:00:14]} Kf6 {[%emt 0:00:07]} 99. Qd8+ {[%emt 0:00:21]} Ke6 {[%emt 0:00:18]} 100. Qe8+ {[%emt 0:00:15]} Kd6 {[%emt 0:00:08]} 101. Qb8+ {[%emt 0:00:12]} Ke7 {[%emt 0:00:09]} 102. Qe5+ {[%emt 0:00:39]} Kd8 {[%emt 0:00:13]} 103. Qb8+ {[%emt 0:00:25]} Kd7 {[%emt 0:00:11]} 1/2-1/2

[Event "French-ch Youth U12 2022"]
[Site "Agen"]
[Date "2022.04.19"]
[Round "4.4"]
[White "Pleut, Mael"]
[Black "Lefrancois, Jean"]
[Result "0-1"]
[ECO "D31"]
[WhiteElo "1748"]
[BlackElo "1476"]
[Annotator "NA RC"]
[PlyCount "68"]
[EventDate "2022.04.17"]
[EventType "swiss"]
[EventCountry "FRA"]
[SourceTitle "playchess.com"]
[Source "ChessBase"]
[SourceQuality "1"]
[TimeControl "5400+30"]

1. d4 {[%emt 0:00:02]} d5 {[%emt 0:00:09]} 2. c4 {[%emt 0:00:03]} c6 {[%emt 0:00:12]} 3. Nc3 {[%emt 0:00:07]} e6 {[%emt 0:01:09]} 4. e4 {[%emt 0:00:07]} dxe4 {[%emt 0:00:42]} 5. Nxe4 {[%emt 0:00:06]} Nf6 {[%emt 0:00:34]} 6. Nxf6+ {[%emt 0:00:05]} Qxf6 {[%emt 0:00:13]} 7. Nf3 {[%emt 0:00:05]} h6 {[%emt 0:00:37]} 8. Be2 {[%emt 0:01:10]} Bd6 {[%emt 0:00:52]} 9. O-O {[%emt 0:00:45]} O-O {[%emt 0:00:53]} 10. Be3 {[%emt 0:01:36]} Nd7 {[%emt 0:00:52]} 11. Qd2 {[%emt 0:01:44]} e5 {[%emt 0:01:21]} 12. c5 {[%emt 0:09:18]} Bc7 {[%emt 0:01:15]} 13. Rfd1 {[%emt 0:04:29]} e4 {[%emt 0:02:42]} 14. Ne1 {[%emt 0:00:04]} Qg6 {[%emt 0:01:18]} 15. Rac1 {[%emt 0:03:43]} f5 {[%emt 0:01:08]} 16. Bf4 Bxf4 {[%emt 0:04:23]} 17. Qxf4 {[%emt 0:00:23]} Nf6 {[%emt 0:08:18]} 18. Bc4+ {[%emt 0:11:08]} Kh8 {[%emt 0:01:27]} 19. Qc7 {[%emt 0:26:13]} Ne8 {[%emt 0:06:56]} 20. Qa5 {[%emt 0:12:32]} Be6 {[%emt 0:05:28]} 21. d5 {[%emt 0:05:45]} cxd5 {[%emt 0:00:18]} 22. Bxd5 {[%emt 0:00:05]} Bxd5 {[%emt 0:00:15]} 23. Rxd5 {[%emt 0:00:10]} Nf6 {[%emt 0:00:33]} 24. Rd6 {[%emt 0:00:14]} Qg5 {[%emt 0:00:43]} 25. Rcd1 {[%emt 0:00:29]} e3 {[%emt 0:01:25]} 26. f3 {[%emt 0:02:53]} e2 {[%emt 0:01:46]} 27. R1d3 {[%emt 0:01:21]} Ne4 {[%emt 0:05:46]} 28. Rd7 {[%emt 0:01:29]} b6 {[%emt 0:01:06]} 29. cxb6 {[%emt 0:00:45]} axb6 {[%emt 0:00:12]} 30. Qxb6 {[%emt 0:00:09]} Qc1 {[%emt 0:00:55]} 31. Qb4 {[%emt 0:01:09]} Rfb8 {[%emt 0:00:25]} 32. Rd8+ {[%emt 0:00:09]} Rxd8 {[%emt 0:00:32]} 33. fxe4 {[%emt 0:00:07]} Rxd3 {[%emt 0:00:22]} 34. Kf2 {[%emt 0:00:24]} Qe3# {[%emt 0:00:09]} 0-1